bitfinex-derivatives/quotes_BNBF0:USTF0_20250630
["timestamp","ask_amount","ask_price","bid_price","bid_amount"]
[1751293628324,2.27465023,653.67,652.93,1.0773281]
[1751293628627,2.27465023,653.66,652.94,1.0773281]
[1751293628825,2.27465023,653.66,652.95,1.0773281]
[1751293629025,2.27465023,653.66,652.96,1.0773281]
[1751293629224,2.27465023,653.65,652.97,1.0773281]
[1751293629524,2.27465023,653.65,652.98,1.0773281]
[1751293629729,2.27465023,653.65,652.99,1.0773281]
[1751293629929,2.27465023,653.65,652.77,1.14035879]
[1751293629930,2.27465023,653.65,653.0,1.0773281]
[1751293630133,2.27465023,653.65,653.01,1.0773281]
[1751293630329,2.27465023,653.58,653.02,1.0773281]
[1751293630526,2.27465023,653.58,653.03,1.0773281]
[1751293630725,2.27465023,653.58,653.04,1.0773281]
[1751293630929,2.27465023,653.58,652.81,1.14035879]
[1751293631232,2.27465023,653.57,652.82,2.21892776]
[1751293631426,2.27465023,653.57,652.83,1.07856897]
[1751293631626,2.27465023,653.57,652.84,1.07856897]
[1751293631830,2.27465023,653.57,652.85,1.07856897]
[1751293632027,2.27465023,653.58,652.86,1.07856897]
[1751293632232,2.27465023,653.57,652.87,1.07856897]
[1751293632429,2.27465023,653.57,652.88,1.07856897]
[1751293632731,2.27465023,653.57,652.89,1.07856897]
[1751293632928,2.27465023,653.55,652.9,1.07856897]
[1751293633131,2.27465023,653.52,652.91,1.07856897]
[1751293633330,2.27465023,653.52,652.92,1.07856897]
[1751293633532,2.27465023,653.52,652.93,1.07856897]
[1751293633832,2.27465023,653.52,652.94,1.07856897]
[1751293634130,2.27465023,653.52,652.95,1.07856897]
[1751293634329,2.27465023,653.51,652.96,1.07856897]
[1751293634531,2.27465023,653.51,652.97,1.07856897]
[1751293634728,2.27465023,653.51,652.98,1.07856897]
[1751293634927,2.27465023,653.51,652.86,1.14035879]
[1751293634928,2.27465023,653.51,652.99,1.07856897]
[1751293635228,2.27465023,653.48,653.0,1.07856897]
[1751293635432,2.27465023,653.48,653.01,1.07856897]
[1751293635632,2.27465023,653.48,653.02,1.07856897]
[1751293635833,2.27465023,653.48,653.03,1.07856897]
[1751293636029,2.27465023,653.48,653.04,1.07856897]
[1751293636228,2.27465023,653.47,653.05,1.07856897]
[1751293636428,2.27465023,653.47,653.06,1.07856897]
[1751293636732,2.27465023,653.47,653.07,1.07856897]
[1751293636934,2.27465023,653.47,653.08,1.07856897]
[1751293637127,2.27465023,653.47,652.88,1.14035879]
[1751293637330,2.27465023,653.47,652.89,1.08009494]
[1751293637530,2.27465023,653.47,652.9,1.08009494]
[1751293637730,2.27465023,653.47,652.91,1.08009494]
[1751293637927,2.27465023,653.47,652.92,1.08009494]
[1751293638130,2.27465023,653.47,652.93,1.08009494]
[1751293638332,2.27465023,653.47,652.94,1.08009494]
[1751293638629,2.27465023,653.48,652.95,1.08009494]
[1751293638829,2.27465023,653.48,652.96,1.08009494]
[1751293639034,2.27465023,653.48,652.97,1.08009494]
[1751293639236,2.27465023,653.48,652.98,1.08009494]
[1751293639532,2.27465023,653.47,652.99,1.08009494]
[1751293639736,2.27465023,653.47,653.0,1.08009494]
[1751293639935,2.27465023,653.47,653.01,1.08009494]
[1751293640135,2.27465023,653.47,653.02,1.08009494]
[1751293640334,2.27465023,653.47,653.03,1.08009494]
[1751293640536,2.27465023,653.47,652.89,1.14035879]
[1751293640537,2.27465023,653.47,653.04,1.08009494]
[1751293640736,2.27465023,653.47,652.9,1.14035879]
[1751293640737,2.27465023,653.47,653.05,1.08009494]
[1751293640938,2.27465023,653.5,653.06,1.08009494]
[1751293641137,2.27465023,653.5,653.07,1.08009494]
[1751293641335,2.27465023,653.5,653.08,1.08009494]
[1751293641539,2.27465023,653.5,653.09,1.08009494]
[1751293641738,2.27465023,653.5,652.88,1.14035879]
[1751293641939,2.27465023,653.5,652.76,1.52838239]
[1751293641940,2.27465023,653.49,652.89,2.22035556]
[1751293642236,2.27465023,653.49,652.9,1.07999677]
[1751293642536,2.27465023,653.49,652.91,1.07999677]
[1751293642839,2.27465023,653.49,652.92,1.07999677]
[1751293643135,2.27465023,653.48,652.93,1.07999677]
[1751293643433,2.27465023,653.48,652.94,1.07999677]
[1751293643635,2.27465023,653.48,652.95,1.07999677]
[1751293643838,2.27465023,653.48,652.96,1.07999677]
[1751293644036,2.27465023,653.48,652.97,1.07999677]
[1751293644234,2.27465023,653.48,652.98,1.07999677]
[1751293644438,2.27465023,653.48,652.99,1.07999677]
[1751293644637,2.27465023,653.48,653.0,1.07999677]
[1751293644841,2.27465023,653.48,653.01,1.07999677]
[1751293645037,2.27465023,653.47,653.02,1.07999677]
[1751293645241,2.27465023,653.47,653.03,1.07999677]
[1751293645541,2.27465023,653.47,653.04,1.07999677]
[1751293645737,2.27465023,653.47,653.05,1.07999677]
[1751293645941,2.27465023,653.47,653.06,1.07999677]
[1751293646241,2.27465023,653.47,653.07,1.07999677]
[1751293646438,2.27465023,653.47,653.08,1.07999677]
[1751293646639,2.27465023,653.47,653.09,1.07999677]
[1751293646842,2.27465023,653.47,653.1,1.07999677]
[1751293647136,2.27465023,653.47,652.9,1.14035879]
[1751293647337,2.27465023,653.47,652.91,1.08025037]
[1751293647540,2.27465023,653.47,652.92,1.08025037]
[1751293647742,2.27465023,653.47,652.93,1.08025037]
[1751293647942,2.27465023,653.47,652.94,1.08025037]
[1751293648138,2.27465023,653.47,652.95,1.08025037]
[1751293648342,2.27465023,653.47,652.96,1.08025037]
[1751293648540,2.27465023,653.47,652.97,1.08025037]
[1751293648740,2.27465023,653.47,652.98,1.08025037]
[1751293648942,2.27465023,653.47,652.99,1.08025037]
[1751293649240,2.27465023,653.48,653.0,1.08025037]
[1751293649543,2.27465023,653.47,653.01,1.08025037]
[1751293649843,2.27465023,653.47,653.02,1.08025037]
[1751293650039,2.27465023,653.47,653.03,1.08025037]
[1751293650244,2.27465023,653.47,653.04,1.08025037]
[1751293650540,2.27465023,653.47,653.05,1.08025037]
[1751293650743,2.27465023,653.46,653.06,1.08025037]
[1751293650942,2.27465023,653.44,653.07,1.08025037]
[1751293651141,2.27465023,653.44,653.08,1.08025037]
[1751293651339,2.27465023,653.44,653.09,1.08025037]
[1751293651544,2.27465023,653.44,652.91,1.14035879]
[1751293651742,2.27465023,653.44,652.92,1.08025675]
[1751293651944,2.27465023,653.44,652.91,1.14035879]
[1751293651945,2.27465023,653.44,652.93,1.08025675]
[1751293652146,2.27465023,653.44,652.94,1.08025675]
[1751293652445,2.27465023,653.47,652.95,1.08025675]
[1751293652642,3.80171411,653.92,652.96,1.08025675]
[1751293652643,2.27465023,653.46,652.96,1.08025675]
[1751293652841,2.27465023,653.46,652.97,1.08025675]
[1751293653047,2.27465023,653.46,652.98,1.08025675]
[1751293653245,2.27465023,653.46,652.99,1.08025675]
[1751293653440,2.27465023,653.46,653.0,1.08025675]
[1751293653644,2.27465023,653.46,653.01,1.08025675]
[1751293653842,2.27465023,653.46,653.02,1.08025675]
[1751293654045,2.27465023,653.46,653.03,1.08025675]
[1751293654245,2.27465023,653.46,653.04,1.08025675]
[1751293654545,2.27465023,653.46,653.05,1.08025675]
[1751293654746,2.27465023,653.46,653.06,1.08025675]
[1751293655043,2.27465023,653.46,653.07,1.08025675]
[1751293655243,2.27465023,653.46,653.08,1.08025675]
[1751293655446,2.27465023,653.46,653.09,1.08025675]
[1751293655646,2.27465023,653.46,653.1,1.08025675]
[1751293655848,2.27465023,653.46,652.96,2.572]
[1751293656048,2.27465023,653.46,652.97,1.08027256]
[1751293656347,2.27465023,653.46,652.98,1.08027256]
[1751293656542,2.27465023,653.46,652.99,1.08027256]
[1751293656744,2.27465023,653.46,653.0,1.08027256]
[1751293656945,2.27465023,653.46,653.01,1.08027256]
[1751293657147,2.27465023,653.46,652.96,2.572]
[1751293657148,2.27465023,653.46,653.02,1.08027256]
[1751293657346,2.27465023,653.46,653.03,1.08027256]
[1751293657542,2.27465023,653.47,653.04,1.08027256]
[1751293657745,2.27465023,653.47,653.05,1.08027256]
[1751293657945,2.27465023,653.47,653.06,1.08027256]
[1751293658143,2.27465023,653.47,653.07,1.08027256]
[1751293658346,2.27465023,653.47,653.08,1.08027256]
[1751293658543,2.27465023,653.47,653.09,1.08027256]
[1751293658744,2.27465023,653.47,653.1,1.08027256]
[1751293658949,2.27465023,653.47,652.96,2.572]
[1751293659150,2.27465023,653.47,652.97,1.08028743]
[1751293659349,2.27465023,653.47,652.98,1.08028743]
[1751293659547,2.27465023,653.47,652.99,1.08028743]
[1751293659853,2.27465023,653.47,653.0,1.08028743]
[1751293660049,2.27465023,653.47,653.01,1.08028743]
[1751293660246,2.27465023,653.47,653.02,1.08028743]
[1751293660544,2.27465023,653.47,653.03,1.08028743]
[1751293660748,2.27465023,653.47,653.04,1.08028743]
[1751293660948,2.27465023,653.47,653.05,1.08028743]
[1751293661147,2.27465023,653.47,653.06,1.08028743]
[1751293661347,2.27465023,653.47,653.07,1.08028743]
[1751293661546,2.27465023,653.47,653.08,1.08028743]
[1751293661849,2.27465023,653.47,653.09,1.08028743]
[1751293662051,2.27465023,653.45,653.1,1.08028743]
[1751293662247,2.27465023,653.45,652.96,2.572]
[1751293662448,2.27465023,653.45,652.97,1.08030203]
[1751293662649,2.27465023,653.47,652.98,1.08030203]
[1751293662847,2.27465023,653.47,652.99,1.08030203]
[1751293663051,2.27465023,653.47,653.0,1.08030203]
[1751293663347,2.27465023,653.49,653.01,1.08030203]
[1751293663652,2.27465023,653.49,653.02,1.08030203]
[1751293663847,2.27465023,653.49,652.96,2.572]
[1751293663848,2.27465023,653.49,653.03,1.08030203]
[1751293664151,2.27465023,653.49,653.04,1.08030203]
[1751293664352,2.27465023,653.49,653.05,1.08030203]
[1751293664549,2.27465023,653.49,653.06,1.08030203]
[1751293664748,2.27465023,653.49,653.07,1.08030203]
[1751293664953,2.27465023,653.49,653.08,1.08030203]
[1751293665149,2.27465023,653.49,653.09,1.08030203]
[1751293665449,2.27465023,653.49,653.1,1.08030203]
[1751293665748,2.27465023,653.49,652.96,2.572]
[1751293665949,2.27465023,653.49,652.97,1.08030221]
[1751293666150,2.27465023,653.49,652.98,1.08030221]
[1751293666454,2.27465023,653.49,652.99,1.08030221]
[1751293666753,2.27465023,653.49,653.0,1.08030221]
[1751293666951,2.27465023,653.49,653.01,1.08030221]
[1751293667151,2.27465023,653.49,653.02,1.08030221]
[1751293667357,2.27465023,653.49,653.03,1.08030221]
[1751293667657,2.27465023,653.49,653.04,1.08030221]
[1751293667855,2.27465023,653.49,653.05,1.08030221]
[1751293668058,2.27465023,653.49,653.06,1.08030221]
[1751293668356,2.27465023,653.5,653.07,1.08030221]
[1751293668556,2.27465023,653.5,653.08,1.08030221]
[1751293668859,2.27465023,653.5,652.96,2.572]
[1751293668860,2.27465023,653.58,653.09,1.08030221]
[1751293669060,2.27465023,653.58,653.1,1.08030221]
[1751293669262,2.27465023,653.57,652.96,2.572]
[1751293669459,2.27465023,653.57,652.97,1.08030192]
[1751293669759,2.27465023,653.57,652.98,1.08030192]
[1751293669960,2.27465023,653.57,652.99,1.08030192]
[1751293670259,2.27465023,653.57,653.0,1.08030192]
[1751293670558,2.27465023,653.57,653.01,1.08030192]
[1751293670761,2.27465023,653.57,653.02,1.08030192]
[1751293670958,2.27465023,653.57,653.03,1.08030192]
[1751293671157,2.27465023,653.57,653.04,1.08030192]
[1751293671456,2.27465023,653.57,653.05,1.08030192]
[1751293671660,2.27465023,653.57,653.06,1.08030192]
[1751293671858,2.27465023,653.57,653.07,1.08030192]
[1751293672061,2.27465023,653.57,653.08,1.08030192]
[1751293672358,2.27465023,653.58,653.09,1.08030192]
[1751293672561,2.27465023,653.58,652.96,2.572]
[1751293672562,2.27465023,653.63,653.1,1.08030192]
[1751293672762,2.27465023,653.63,652.96,2.572]
[1751293673062,2.27465023,653.63,652.97,1.08021078]
[1751293673362,2.27465023,653.63,652.98,1.08021078]
[1751293673560,2.27465023,653.63,652.99,1.08021078]
[1751293673759,2.27465023,653.63,653.0,1.08021078]
[1751293673960,3.80171411,654.28,652.96,2.572]
[1751293673961,2.27465023,653.64,653.01,1.08021078]
[1751293674161,2.27465023,653.64,653.02,1.08021078]
[1751293674359,2.27465023,653.64,653.03,1.08021078]
[1751293674562,2.27465023,653.65,653.04,1.08021078]
[1751293674763,2.27465023,653.64,653.05,1.08021078]
[1751293674963,2.27465023,653.64,653.06,1.08021078]
[1751293675263,2.27465023,653.64,653.07,1.08021078]
[1751293675459,2.27465023,653.64,653.08,1.08021078]
[1751293675663,2.27465023,653.64,653.09,1.08021078]
[1751293675963,2.27465023,653.64,653.1,1.08021078]
[1751293676263,2.27465023,653.64,653.11,1.08021078]
[1751293676562,2.27465023,653.64,652.96,2.572]
[1751293676763,2.27465023,653.64,652.97,1.08021408]
[1751293676964,2.27465023,653.64,652.98,1.08021408]
[1751293677260,2.27465023,653.64,652.99,1.08021408]
[1751293677564,2.27465023,653.65,653.0,1.08021408]
[1751293677762,2.27465023,653.65,653.01,1.08021408]
[1751293677964,2.27465023,653.65,653.02,1.08021408]
[1751293678165,2.27465023,653.64,653.03,1.08021408]
[1751293678465,2.27465023,653.64,653.04,1.08021408]
[1751293678663,3.80171411,654.32,653.05,1.08021408]
[1751293678664,2.27465023,653.62,653.05,1.08021408]
[1751293678865,2.27465023,653.62,653.06,1.08021408]
[1751293679060,2.27465023,653.62,653.07,1.08021408]
[1751293679259,2.27465023,653.62,653.08,1.08021408]
[1751293679561,2.27465023,653.62,653.09,1.08021408]
[1751293679765,2.27465023,653.62,653.1,1.08021408]
[1751293679965,2.27465023,653.62,653.11,1.08021408]
[1751293680166,2.27465023,653.62,652.96,2.572]
[1751293680466,2.27465023,653.62,652.97,1.08025388]
[1751293680663,2.27465023,653.62,652.98,1.08025388]
[1751293680864,2.27465023,653.62,652.99,1.08025388]
[1751293681069,2.27465023,653.62,653.0,1.08025388]
[1751293681367,2.27465023,653.62,653.01,1.08025388]
[1751293681669,2.27465023,653.64,653.02,1.08025388]
[1751293681869,2.27465023,653.64,653.03,1.08025388]
[1751293682068,2.27465023,653.64,653.04,1.08025388]
[1751293682265,2.27465023,653.63,653.05,1.08025388]
[1751293682466,2.27465023,653.59,653.06,1.08025388]
[1751293682664,2.27465023,653.59,653.07,1.08025388]
[1751293682965,2.27465023,653.59,653.08,1.08025354]
[1751293683164,2.27465023,653.59,653.09,1.08025354]
[1751293683365,2.27465023,653.59,653.1,1.08025354]
[1751293683564,2.27465023,653.59,653.11,1.08025354]
[1751293683767,2.27465023,653.59,652.96,2.572]
[1751293683968,2.27465023,653.58,652.97,1.08025334]
[1751293684266,2.27465023,653.58,652.98,1.08025334]
[1751293684465,2.27465023,653.57,652.99,1.08025334]
[1751293684764,2.27465023,653.57,653.0,1.08025334]
[1751293684966,2.27465023,653.57,653.01,1.08025334]
[1751293685266,2.27465023,653.57,653.02,1.08025334]
[1751293685467,2.27465023,653.57,653.03,1.08025334]
[1751293685671,2.27465023,653.57,653.04,1.08025334]
[1751293685966,2.27465023,653.57,653.05,1.08025334]
[1751293686168,2.27465023,653.57,653.06,1.08025334]
[1751293686371,2.27465023,653.57,653.07,1.08025334]
[1751293686574,2.27465023,653.57,653.08,1.08025334]
[1751293686768,2.27465023,653.57,653.09,1.08025334]
[1751293686968,2.27465023,653.57,653.1,1.08025334]
[1751293687168,2.27465023,653.57,652.96,2.572]
[1751293687474,2.27465023,653.56,652.97,1.08025302]
[1751293687673,2.27465023,653.56,652.98,1.08025302]
[1751293687874,2.27465023,653.56,652.99,1.08025302]
[1751293688081,2.27465023,653.56,653.0,1.08025302]
[1751293688275,2.27465023,653.56,653.01,1.08025302]
[1751293688576,2.27465023,653.57,653.02,1.08025302]
[1751293688875,2.27465023,653.57,653.03,1.08025302]
[1751293689071,2.27465023,653.57,653.04,1.08025302]
[1751293689376,2.27465023,653.57,653.05,1.08025302]
[1751293689576,2.27465023,653.57,653.06,1.08025302]
[1751293689772,2.27465023,653.57,653.07,1.08025302]
[1751293689973,2.27465023,653.57,653.08,1.08025302]
[1751293690273,2.27465023,653.57,653.09,1.08025302]
[1751293690577,2.27465023,653.57,653.1,1.08025302]
[1751293690779,2.27465023,653.57,652.96,2.572]
[1751293691077,2.27465023,653.57,652.97,1.08025329]
[1751293691276,2.27465023,653.57,652.98,1.08025329]
[1751293691479,2.27465023,653.51,652.99,1.08025329]
[1751293691675,2.27465023,653.51,653.0,1.08025329]
[1751293691878,2.27465023,653.53,653.01,1.08025329]
[1751293692078,2.27465023,653.52,653.02,1.08025329]
[1751293692274,2.27465023,653.52,653.03,1.08025329]
[1751293692474,2.27465023,653.51,653.04,1.08025329]
[1751293692676,2.27465023,653.51,653.05,1.08025329]
[1751293692879,2.27465023,653.51,653.06,1.08025329]
[1751293693080,2.27465023,653.52,653.07,1.08025329]
[1751293693280,2.27465023,653.49,653.08,1.08025329]
[1751293693477,2.27465023,653.5,653.09,1.08025329]
[1751293693677,2.27465023,653.5,653.1,1.08025329]
[1751293693881,2.27465023,653.5,652.96,2.572]
[1751293694180,2.27465023,653.5,652.97,1.08025592]
[1751293694379,2.27465023,653.5,652.98,1.08025592]
[1751293694676,2.27465023,653.5,652.99,1.08025592]
[1751293694878,2.27465023,653.5,653.0,1.08025592]
[1751293695079,2.27465023,653.51,653.01,1.08025592]
[1751293695278,2.27465023,653.51,653.02,1.08025592]
[1751293695477,2.27465023,653.51,653.03,1.08025592]
[1751293695681,2.27465023,653.51,653.04,1.08025592]
[1751293695878,2.27465023,653.52,653.05,1.08025592]
[1751293696180,2.27465023,653.51,653.06,1.08025592]
[1751293696377,2.27465023,653.49,653.07,1.08025592]
[1751293696580,2.27465023,653.49,653.08,1.08025592]
[1751293696779,2.27465023,653.49,653.09,1.08025592]
[1751293696979,2.27465023,653.5,653.1,1.08025592]
[1751293697182,2.27465023,653.5,652.96,2.572]
[1751293697183,2.27465023,653.47,652.96,2.572]
[1751293697384,2.27465023,653.59,652.97,1.08027595]
[1751293697585,2.27465023,653.61,652.98,1.08027595]
[1751293697784,2.27465023,653.45,652.96,2.572]
[1751293698083,2.27465023,653.4,652.96,2.572]
[1751293698279,2.27465023,653.44,652.96,2.572]
[1751293699182,2.27465023,653.46,652.96,2.572]
[1751293699385,2.27465023,653.44,652.96,2.572]
[1751293700182,2.27465023,653.46,652.96,2.572]
[1751293700387,2.27465023,653.44,652.96,2.572]
[1751293700586,2.27465023,653.42,652.96,2.572]
[1751293701082,2.27465023,653.43,652.96,2.572]
[1751293701283,2.27465023,653.41,652.96,2.572]
[1751293702081,2.27465023,653.42,652.96,2.572]
[1751293702782,2.27465023,653.45,652.96,2.572]
[1751293703286,2.27465023,653.51,652.96,2.572]
[1751293703686,2.27465023,653.5,652.96,2.572]
[1751293704783,2.27465023,653.49,652.96,2.572]
[1751293704988,2.27465023,653.42,652.96,2.572]
[1751293705890,2.27465023,653.49,652.96,2.572]
[1751293707192,2.27465023,653.5,652.96,2.572]
[1751293708390,2.27465023,653.52,652.96,2.572]
[1751293708792,2.27465023,653.52,652.64,0.26641454]
[1751293709091,2.27465023,653.52,652.65,1.06198479]
[1751293709391,2.27465023,653.52,652.64,0.26641454]
[1751293709392,2.27465023,653.53,652.66,1.06198479]
[1751293709589,2.27465023,653.53,652.67,1.06198479]
[1751293709790,2.27465023,653.53,652.68,1.06198479]
[1751293709993,2.27465023,653.53,652.69,1.06198479]
[1751293710193,2.27465023,653.54,652.7,1.06198479]
[1751293710392,2.27465023,653.54,652.71,1.06198479]
[1751293710594,2.27465023,653.54,652.72,1.06198479]
[1751293710892,2.27465023,653.54,652.64,0.26641454]
[1751293711089,2.27465023,653.54,652.65,1.06172665]
[1751293711294,2.27465023,653.54,652.66,1.06172665]
[1751293711489,2.27465023,653.54,652.67,1.06172665]
[1751293711690,2.27465023,653.54,652.68,3.43372665]
[1751293711892,2.27465023,653.54,652.69,1.06172665]
[1751293712091,2.27465023,653.54,652.7,1.06172665]
[1751293712293,2.27465023,653.55,652.71,1.06172665]
[1751293712491,2.27465023,653.55,652.72,1.06172665]
[1751293712696,2.27465023,653.53,652.68,2.372]
[1751293712893,2.27465023,653.53,652.69,1.06150498]
[1751293713094,2.27465023,653.46,652.7,1.06150498]
[1751293713293,2.27465023,653.46,652.71,1.06150498]
[1751293713494,2.27465023,653.46,652.72,1.06150498]
[1751293713696,2.27465023,653.46,652.68,2.372]
[1751293713893,2.27465023,653.46,652.69,1.06140813]
[1751293714093,2.27465023,653.46,652.7,1.06140813]
[1751293714298,2.27465023,653.46,652.71,1.06140813]
[1751293714597,2.27465023,653.46,652.72,1.06140813]
[1751293714795,2.27465023,653.46,652.68,2.372]
[1751293714992,2.27465023,653.46,652.69,1.06132234]
[1751293715295,0.26642066,653.65,652.7,1.06132234]
[1751293715296,2.27465023,653.5,652.7,1.06132234]
[1751293715495,2.27465023,653.5,652.71,1.06132234]
[1751293715694,2.27465023,653.5,652.72,1.06132234]
[1751293716001,2.27465023,653.5,652.68,2.372]
[1751293716203,2.27465023,653.5,652.69,1.06120158]
[1751293716397,2.27465023,653.5,652.7,1.06120158]
[1751293716596,2.27465023,653.5,652.71,1.06120158]
[1751293716893,2.27465023,653.5,652.72,1.06120158]
[1751293717092,2.27465023,653.5,652.68,2.372]
[1751293717292,2.27465023,653.51,652.69,1.06113731]
[1751293717494,2.27465023,653.51,652.7,1.06113731]
[1751293717796,2.27465023,653.55,652.71,1.06113731]
[1751293717993,2.27465023,653.55,652.72,1.06113731]
[1751293718197,2.27465023,653.55,652.68,2.372]
[1751293718498,2.27465023,653.56,652.69,1.06105739]
[1751293718692,0.26642066,653.65,652.7,1.06105739]
[1751293718898,2.27465023,653.8,652.71,1.06105739]
[1751293719094,2.27465023,653.61,652.72,1.06105739]
[1751293719294,2.27465023,653.62,652.73,1.06105739]
[1751293719493,2.27465023,653.62,652.74,1.06105739]
[1751293719697,2.27465023,653.62,652.75,1.06105739]
[1751293719898,2.27465023,653.62,652.76,1.06105739]
[1751293720099,2.27465023,653.62,652.77,1.06105739]
[1751293720299,2.27465023,653.61,652.78,1.06105739]
[1751293720500,2.27465023,653.61,652.79,1.06105739]
[1751293720700,2.27465023,653.61,652.8,1.06105739]
[1751293720895,2.27465023,653.62,652.81,1.06105739]
[1751293721101,2.27465023,653.61,652.82,1.06105739]
[1751293721301,2.27465023,653.61,652.83,1.06105739]
[1751293721603,2.27465023,653.61,652.84,1.06105739]
[1751293721801,2.27465023,653.61,652.85,1.06105739]
[1751293721999,2.27465023,653.61,652.86,1.06105739]
[1751293722204,2.27465023,653.62,652.87,1.06095565]
[1751293722398,2.27465023,653.62,652.68,2.372]
[1751293722599,2.27465023,653.62,652.69,1.06095565]
[1751293722800,2.27465023,653.62,652.7,1.06095565]
[1751293723002,2.27465023,653.64,652.71,1.06095565]
[1751293723205,2.27465023,653.64,652.72,1.06095565]
[1751293723502,2.27465023,653.64,652.73,1.06095565]
[1751293723702,2.27465023,653.64,652.74,1.06095565]
[1751293723901,2.27465023,653.64,652.75,1.06095565]
[1751293724102,2.27465023,653.64,652.76,1.06095565]
[1751293724402,2.27465023,653.64,652.77,1.06095565]
[1751293724605,2.27465023,653.64,652.78,1.06095565]
[1751293724803,2.27465023,653.64,652.79,1.06095565]
[1751293725101,2.27465023,653.64,652.8,1.06095565]
[1751293725405,2.27465023,653.64,652.81,1.06095565]
[1751293725602,2.27465023,653.64,652.82,1.06095565]
[1751293725803,2.27465023,653.64,652.83,1.06095565]
[1751293726001,2.27465023,653.64,652.84,1.06095565]
[1751293726202,2.27465023,653.64,652.85,1.06095565]
[1751293726403,2.27465023,653.63,652.86,1.06095565]
[1751293726604,2.27465023,653.63,652.87,1.06095565]
[1751293726802,2.27465023,653.63,652.68,2.372]
[1751293727003,2.27465023,653.63,652.69,1.06108358]
[1751293727302,2.27465023,653.64,652.7,1.06108358]
[1751293727503,2.27465023,653.64,652.71,1.06108358]
[1751293727699,2.27465023,653.64,652.72,1.06108358]
[1751293727903,2.27465023,653.64,652.73,1.06108358]
[1751293728100,2.27465023,653.63,652.74,1.06108358]
[1751293728299,2.27465023,653.63,652.75,1.06108358]
[1751293728505,2.27465023,653.63,652.76,1.06108358]
[1751293728701,2.27465023,653.63,652.77,1.06108358]
[1751293728907,2.27465023,653.61,652.78,1.06108358]
[1751293729106,2.27465023,653.61,652.79,1.06108358]
[1751293729403,2.27465023,653.61,652.8,1.06108358]
[1751293729602,2.27465023,653.61,652.81,1.06108358]
[1751293729904,0.26637274,653.74,652.82,1.06108358]
[1751293730108,0.26637274,653.74,652.83,1.06108358]
[1751293730301,0.26637274,653.74,652.84,1.06108358]
[1751293730506,0.26637274,653.74,652.85,1.06108358]
[1751293730802,0.26637274,653.74,652.86,1.06108358]
[1751293731002,0.26637274,653.74,652.87,1.06108358]
[1751293731203,0.26637274,653.74,652.68,2.372]
[1751293731402,0.26637274,653.74,652.69,1.06330732]
[1751293731606,0.26637274,653.74,652.7,1.06330732]
[1751293731805,0.26637274,653.74,652.71,1.06330732]
[1751293732004,0.26637274,653.74,652.72,1.06330732]
[1751293732307,0.26637274,653.74,652.73,1.06330732]
[1751293732604,0.26637274,653.74,652.74,1.06330732]
[1751293732807,0.26637274,653.74,652.75,1.06330732]
[1751293733110,0.26637274,653.74,652.76,1.06330732]
[1751293733304,0.26637274,653.74,652.77,1.06330732]
[1751293733504,0.26637274,653.74,652.78,1.06330732]
[1751293733702,0.26637274,653.74,652.79,1.06330732]
[1751293733906,0.26637274,653.74,652.8,1.06330732]
[1751293734204,0.26637274,653.74,652.81,1.06330732]
[1751293734402,0.26637274,653.74,652.82,1.06330732]
[1751293734603,0.26637274,653.74,652.83,1.06330732]
[1751293734803,0.26637274,653.74,652.84,1.06330732]
[1751293735007,0.26637274,653.74,652.85,1.06330732]
[1751293735207,0.26637274,653.74,652.86,1.06330732]
[1751293735505,2.27465023,653.72,652.87,1.06330732]
[1751293735708,2.27465023,653.72,652.68,2.372]
[1751293735910,2.27465023,653.72,652.69,1.06346833]
[1751293736111,2.27465023,653.72,652.7,1.06346833]
[1751293736310,2.27465023,653.72,652.71,1.06346833]
[1751293736608,2.27465023,653.72,652.72,1.06346833]
[1751293736808,2.27465023,653.67,652.73,1.06346833]
[1751293737009,2.27465023,653.67,652.74,1.06346833]
[1751293737209,2.27465023,653.66,652.75,1.06346833]
[1751293737411,2.27465023,653.66,652.76,1.06346833]
[1751293737610,2.27465023,653.66,652.77,1.06346833]
[1751293737811,2.27465023,653.66,652.78,1.06346833]
[1751293738011,2.27465023,653.66,652.79,1.06346833]
[1751293738214,2.27465023,653.66,652.8,1.06346833]
[1751293738415,2.27465023,653.61,652.81,1.06346833]
[1751293738616,2.27465023,653.61,652.82,1.06346833]
[1751293738819,2.27465023,653.56,652.83,1.06346833]
[1751293739013,2.27465023,653.56,652.84,1.06346833]
[1751293739217,2.27465023,653.56,652.85,1.06346833]
[1751293739518,2.27465023,653.56,652.86,1.06346833]
[1751293739718,2.27465023,653.56,652.68,2.372]
[1751293739719,2.27465023,653.57,652.68,2.372]
[1751293740013,2.27465023,653.65,652.71,1.14796158]
[1751293740217,2.27465023,653.65,652.72,1.06366064]
[1751293740415,2.27465023,653.65,652.73,1.06366064]
[1751293740619,2.27465023,653.65,652.74,1.06366064]
[1751293740814,2.27465023,653.65,652.75,1.06366064]
[1751293741015,2.27465023,653.65,652.76,1.06366064]
[1751293741220,2.27465023,653.65,652.77,1.06366064]
[1751293741517,2.27465023,653.64,652.78,1.06366064]
[1751293741817,2.27465023,653.64,652.79,1.06366064]
[1751293742019,2.27465023,653.64,652.8,1.06366064]